Cogmind - Beta 15 @@@ ROGUE MODE // 2025.05.09 @ 00:56:42 // Winter2019/RPGLIKE Player: Quartz Result: Destroyed by G-67 Veteran with Field Laser Performance ------------- Evolutions (4) 2000 Regions Visited (9) 1800 Robots Destroyed (128) 640 Value Destroyed (4124) 4124 Prototype IDs (34) 680 Alien Tech Used (0) 0 Bonus (1026) 1026 TOTAL SCORE: 10270 Bonus ------- High Alert Combat Kills 328 Follower Combat Kills 398 Aligned with FarCom 300 Cogmind --------- Core Integrity 0/1000 Matter 67/300 Energy 288/300 System Corruption 0% Temperature Cool (66) Movement Walking (120) Location -6/Factory Parts ------- > --- POWER (1) -------- Enhanced Nuclear Core > --- PROPULSION (4) --- Carbon-fiber Leg Carbon-fiber Leg Flexi-carbon Leg Flexi-carbon Leg > --- UTILITY (6) ------ Advanced Signal Interpreter Advanced Targeting Computer Hardened Medium Armor Plating Hacking Suite System Guard > --- WEAPON (4) ------- Heavy Machine Gun Heavy Machine Gun Gauss Cannon Antimatter Cannon > --- INVENTORY (6) ---- Plasma Cutter Peak State ------------ > --- POWER ------------ Enhanced Nuclear Core > --- PROPULSION ------- Carbon-fiber Leg Carbon-fiber Leg Flexi-carbon Leg Flexi-carbon Leg > --- UTILITY ---------- Advanced Signal Interpreter Advanced Targeting Computer Hardened Medium Armor Plating Graphene Brace Hacking Suite System Guard > --- WEAPON ----------- Heavy Plasma Cannon Coil Gun Gauss Cannon Magnetic Acceleration Cannon > --- INVENTORY -------- Enhanced Nuclear Core Improved Reaction Control System Authchip [R/Combat] Authchip [R/Combat] Authchip [R/Combat] Plasma Cutter [Rating: 68] Favorites ----------- Power Cooled Ion Engine Engine Cooled Ion Engine Power Core Enhanced Nuclear Core Propulsion Carbon-fiber Leg Leg Carbon-fiber Leg Utility Advanced Targeting Computer Device Improved Heat Sink Processor Advanced Targeting Computer Hackware Hacking Suite Protection Medium Armor Plating Weapon Advanced Beam Rifle Energy Gun Advanced Beam Rifle Energy Cannon Heavy Plasma Cannon Ballistic Gun Light Assault Rifle Ballistic Cannon Magnetic Acceleration Cannon Launcher Advanced EMP Blaster Special Weapon Plasma Cutter Build | -11 -10 -10 -10 -9 -8 -8 -8 -8 -6 ------- Run | Yrd Mat Min Exi Min Mat Sto Rec Scr Fac Slots Evolved 11 | 4 . . . . 2 1 . . 4 Power . | . . . . . . . . . . Propulsion 3 | 1 . . . . . . . . 2 Utility 5 | 2 . . . . 1 1 . . 1 Weapon 3 | 1 . . . . 1 . . . 1 Parts Attached 63 | 5 5 1 . 2 12 9 1 . 28 Power 8 | 1 . . . 1 3 1 . . 2 Engine 6 | 1 . . . 1 3 1 . . . Core 2 | . . . . . . . . . 2 Reactor . | . . . . . . . . . . Propulsion 12 | 2 . . . . 3 1 1 . 5 Treads . | . . . . . . . . . . Leg 12 | 2 . . . . 3 1 1 . 5 Wheel . | . . . . . . . . . . Hover . | . . . . . . . . . . Flight . | . . . . . . . . . . Utility 22 | . 5 1 . 1 2 2 . . 11 Device 7 | . . . . . 1 . . . 6 Storage . | . . . . . . . . . . Processor 6 | . 2 . . 1 . 1 . . 2 Hackware 2 | . . . . . 1 1 . . . Protection 7 | . 3 1 . . . . . . 3 Artifact . | . . . . . . . . . . Weapon 21 | 2 . . . . 4 5 . . 10 Energy Gun 7 | . . . . . 3 1 . . 3 Energy Cannon 2 | . . . . . . 1 . . 1 Ballistic Gun 7 | 2 . . . . 1 1 . . 3 Ballistic Cannon 3 | . . . . . . . . . 3 Launcher 1 | . . . . . . 1 . . . Special Weapon 1 | . . . . . . 1 . . . Impact Weapon . | . . . . . . . . . . Slashing Weapon . | . . . . . . . . . . Piercing Weapon . | . . . . . . . . . . Special Melee Weapon . | . . . . . . . . . . Unidentified Prototypes 9 | . . . . . 3 3 . . 3 Parts Lost 6 | . . 1 . . 1 . . . 4 Power . | . . . . . . . . . . Propulsion 1 | . . . . . . . . . 1 Utility 4 | . . 1 . . 1 . . . 2 Weapon 1 | . . . . . . . . . 1 Highest Loss Streak 2 | . . 1 . . 1 . . . 2 To Critical Strikes . | . . . . . . . . . . Average Backups 4 | . . . 2 1 1 3 5 6 5 Power . | . . . . . . . . . . Propulsion . | . . . . . . . . . . Utility 2 | . . . 2 1 . 2 3 4 3 Weapon . | . . . . . . . 1 . . Tool/Special . | . . . . . . . . . . Unused Backups 12 | . . . . . 1 2 . 1 8 Power . | . . . . . . . . . . Propulsion 1 | . . . . . . . . . 1 Utility 7 | . . . . . . 1 . . 6 Weapon 4 | . . . . . 1 1 . 1 1 Tool/Special . | . . . . . . . . . . Average Slot Usage (%) 97 | . 94 99 100 100 94 99 96 100 93 Engine 7 | . 12 12 12 12 9 9 9 9 3 Core 1 | . . . . . . . . . 3 Leg 20 | . 25 25 25 25 20 18 18 18 21 Device 5 | . . . . . 8 9 9 9 5 Processor 20 | . 17 25 25 25 20 25 18 18 18 Hackware 9 | . . . . . 3 10 18 18 10 Protection 4 | . 14 11 12 12 4 . . . 4 Energy Gun 11 | . . . . . 2 18 23 27 7 Energy Cannon 1 | . . . . . . . . . 3 Ballistic Gun 9 | . 25 25 25 25 24 8 . . 4 Ballistic Cannon 2 | . . . . . . . . . 7 Peak Build Rating 68 | 5 11 9 9 11 28 37 38 38 68 Average Rating 35 | 3 8 8 9 11 18 32 35 37 53 On Entrance 18 | . 5 9 9 9 11 28 35 38 38 Naked Turns . | . . . . . . . . . . Heaviest Build 48 | 5 26 12 12 14 21 18 15 15 48 Greatest Support 70 | 20 20 20 20 20 27 27 27 27 70 Greatest Overweight (x) 2 | . 1 . . . 2 . . . 1 Average Overweight (x) . | . . . . . . . . . . Largest Inventory Capacity 6 | 1 1 2 2 2 2 5 6 6 6 Average Capacity 4 | 1 1 1 2 2 2 3 5 6 6 Most Carried 6 | 1 1 2 2 2 2 5 6 6 6 Average Carried 4 | . . . 2 1 1 3 5 5 5 Final Capacity 6 | 1 1 2 2 2 2 5 6 6 6 Final Carried 6 | . 1 2 2 2 2 5 6 6 1 Class Distribution -------------------- 71% | Hacker-Gunner 20% | Mutant 3% | Gunner Dominant Class ---------------- Mutant | -10/Materials Mutant | -10/Mines Mutant | -10/Exiles Mutant | -9/Mines Gunner | -8/Materials Hacker-Gunner | -8/Storage Hacker-Gunner | -8/Recycling Hacker-Gunner | -8/Scraptown Hacker-Gunner | -6/Factory Resources | -11 -10 -10 -10 -9 -8 -8 -8 -8 -6 ----------- Run | Yrd Mat Min Exi Min Mat Sto Rec Scr Fac Matter Collected 2472 | 62 288 55 . . 463 362 20 69 1153 Remotely . | . . . . . . . . . . Salvage Created 4542 | . 344 77 . 70 799 981 262 . 2009 Parts 226 | . 23 1 . 5 29 53 5 . 110 Haulers Intercepted 9 | . . . . . 3 5 . . 1 Recyclers Shooed 8 | . 3 . . . . 2 . . 3 Parts Field Recycled . | . . . . . . . . . . Retrieved Matter . | . . . . . . . . . . Parts Self-Destructed . | . . . . . . . . . . Prevented . | . . . . . . . . . . Kills | -11 -10 -10 -10 -9 -8 -8 -8 -8 -6 ------- Run | Yrd Mat Min Exi Min Mat Sto Rec Scr Fac Combat Hostiles Destroyed 85 | . 8 2 . 3 15 16 3 . 38 Guns 61 | . 8 2 . 3 13 16 2 . 17 Cannons 21 | . . . . . . . . . 21 AOE 2 | . . . . . 2 . . . . Classes Destroyed 14 | . 4 . . . 3 3 . . 4 Worker 9 | . . . . . . 1 . . 8 Builder 5 | . . . . . . 1 . . 4 Hauler 9 | . . . . . 3 5 . . 1 Recycler 10 | . 1 . . . 2 4 1 . 2 Operator 4 | . . . . . 1 1 . . 2 Watcher 6 | . 2 . . . 1 1 . . 2 Swarmer 20 | . 5 . . . 4 3 . . 8 Grunt 39 | . 3 2 . 3 10 6 . . 15 Brawler 1 | . . . . . . . . . 1 Sentry 14 | . . . . . . 7 3 . 4 Specialist 2 | . . . . . . . . . 2 Hunter 2 | . . . . . 1 . . . 1 Programmer 6 | . . . . . . . . . 6 Heavy 1 | . . . . . . . . . 1 Best Kill Streak 12 | . 5 1 . 2 8 4 3 . 12 Combat Bots Only 10 | . 5 1 . 2 8 3 2 . 10 Max Kills in Single Turn 4 | . 1 1 . 1 3 2 1 . 4 Gunslinging 1 | . . . . . . 1 . . . Exploded 2 | . . . . . 2 . . . . Melee . | . . . . . . . . . . Uniques/NPCs Destroyed . | . . . . . . . . . . Combat | -11 -10 -10 -10 -9 -8 -8 -8 -8 -6 -------- Run | Yrd Mat Min Exi Min Mat Sto Rec Scr Fac Hostile Shots Fired 521 | . 59 16 . 35 70 34 14 . 293 Missed 162 | . 19 4 . 6 20 9 3 . 101 Hits 359 | . 40 12 . 29 50 25 11 . 192 Projectile 359 | . 40 12 . 29 50 25 11 . 192 Critical Strikes 19 | . . . . . 2 3 2 . 12 Actively Blocked 3 | . . . . . . . . . 3 Damage Taken 5128 | . 578 181 . 392 826 271 139 . 2741 Core 3652 | . 402 115 . 256 652 217 110 . 1900 Absorbed by Shields 135 | . . . . . . . . . 135 Redirected to Core 3139 | . 357 115 . 202 531 164 96 . 1674 Redirected to Shielding 180 | . . . . . . . . . 180 Ignored by Resistances 539 | . . . . . 46 41 22 . 430 Core Remaining (%) 88 | 100 . . . 66 . . . 100 . Volleys Fired 289 | . 39 11 . 16 55 43 7 . 118 Largest 4 | . 2 2 . 2 3 3 3 . 4 Hottest 204 | . 40 40 . 40 106 147 183 . 204 Shots Fired 747 | . 78 22 . 32 152 129 20 . 314 Gun 561 | . 78 22 . 32 152 129 20 . 128 Cannon 186 | . . . . . . . . . 186 Launcher . | . . . . . . . . . . Special . | . . . . . . . . . . Kinetic 533 | . 78 22 . 32 145 44 . . 212 Thermal 193 | . . . . . 7 85 20 . 81 Explosive . | . . . . . . . . . . Electromagnetic 21 | . . . . . . . . . 21 Robot Hit Streak 39 | . 14 18 . 39 29 33 19 . 22 Robot Miss Streak 4 | . 4 1 . . 2 2 1 . 4 Penetration Max 2 | . . . . . . . . . 2 Secondary Targets 8 | . 2 1 . 1 2 1 . . 1 Max Gunslinging Chain 1 | . 1 1 . 1 1 1 . . 1 Shots Hit Robots 561 | . 51 21 . 31 121 92 17 . 228 Core Hits 239 | . 26 7 . 10 56 44 4 . 92 Critical Kills 1 | . . . . . . . . . 1 Critical Parts Destroyed 4 | . . . . . . 1 . . 3 Critical Strikes 22 | . . . . . . 10 1 . 11 Burn 10 | . . . . . . 9 1 . . Destroy 5 | . . . . . . 1 . . 4 Blast 6 | . . . . . . . . . 6 Corrupt 1 | . . . . . . . . . 1 Melee Attacks . | . . . . . . . . . . Impact . | . . . . . . . . . . Slashing . | . . . . . . . . . . Piercing . | . . . . . . . . . . Sneak Attacks . | . . . . . . . . . . Combat Hostiles . | . . . . . . . . . . Follow-up Attacks . | . . . . . . . . . . Damage Inflicted 12023 | . 416 198 . 252 1832 2018 376 . 6931 Guns 7217 | . 416 174 . 252 1495 1952 370 . 2558 Cannons 4104 | . . . . . . . . . 4104 Explosions 514 | . . . . . 303 . . . 211 Melee . | . . . . . . . . . . Ramming 188 | . . 24 . . 34 66 6 . 58 Kinetic 7624 | . 416 174 . 252 1391 690 . . 4701 Thermal 3894 | . . . . . 407 1262 370 . 1855 Explosive . | . . . . . . . . . . Electromagnetic 317 | . . . . . . . . . 317 Impact . | . . . . . . . . . . Slashing . | . . . . . . . . . . Piercing . | . . . . . . . . . . Highest Corruption 7 | . . . . . 1 4 4 . 7 Average Corruption 3 | . . . . . 1 2 4 . 4 Corruption Purged 5 | . . . . . . . . . 5 Corruption Blocked . | . . . . . . . . . . Effects 56 | . . . . . 3 27 11 . 15 Message Errors 9 | . . . . . . 2 2 . 5 Matter Fused 16 | . . . . . . 9 5 . 2 Heat Flow Errors 8 | . . . . . . 5 1 . 2 Energy Discharges 8 | . . . . . . 5 1 . 2 Data Loss (minor) 4 | . . . . . 2 1 . . 1 Data Loss (major) 3 | . . . . . . 1 1 . 1 Misfires 3 | . . . . . 1 2 . . . Alerts 3 | . . . . . . 1 . . 2 Weapon Failures 2 | . . . . . . 1 1 . . Overload Shots . | . . . . . . . . . . Overflow Damage 418 | . . . . . 184 . . . 234 Projectiles 197 | . . . . . . . . . 197 Explosions 221 | . . . . . 184 . . . 37 Melee . | . . . . . . . . . . Knockbacks 13 | . . . . . . . . . 13 Impact 1 | . . . . . . . . . 1 Kinetic 10 | . . . . . . . . . 10 Secondary 2 | . . . . . . . . . 2 Self-Inflicted Damage 95 | . . . . . 95 . . . . Shots 1 | . . . . . 1 . . . . Rammed . | . . . . . . . . . . Targets Rammed 28 | . . 5 . . 4 10 4 . 5 Kicked 28 | . . 5 . . 4 10 4 . 5 Crushed . | . . . . . . . . . . Highest Temperature 471 | . 12 9 . 31 30 233 195 . 471 Average Temperature 81 | . 6 5 . 12 16 39 83 . 116 Received Heat Transfer 1752 | . 168 105 . 225 387 153 99 . 615 Effects 7 | . . . . . . . . . 7 Shutdowns 1 | . . . . . . . . . 1 Energy Bleed 1 | . . . . . . . . . 1 Interference 1 | . . . . . . . . . 1 Matter Decay 2 | . . . . . . . . . 2 Short Circuit 1 | . . . . . . . . . 1 Damage (minor) 1 | . . . . . . . . . 1 Siege Activations . | . . . . . . . . . . Martial Activations . | . . . . . . . . . . Shielding Activations . | . . . . . . . . . . Robots Disrupted . | . . . . . . . . . . Combat Hostiles . | . . . . . . . . . . Robots Corrupted . | . . . . . . . . . . Combat Hostiles . | . . . . . . . . . . Parts Fried 5 | . . . . . . . . . 5 Impact Corruptions . | . . . . . . . . . . Robots Melted 1 | . . . . . . . 1 . . Combat Hostiles 1 | . . . . . . . 1 . . Parts Melted 13 | . . . . . . 6 5 . 2 Heat Transferred 6944 | . . . . . 422 2997 703 . 2822 Parts Sabotaged . | . . . . . . . . . . Parts Stolen . | . . . . . . . . . . Parts Stripped . | . . . . . . . . . . Power Chain Reactions 1 | . . . . . . . . . 1 Alert | -11 -10 -10 -10 -9 -8 -8 -8 -8 -6 ------- Run | Yrd Mat Min Exi Min Mat Sto Rec Scr Fac Maximum Alert Level 3 | . . . . . 1 1 . . 3 Low Security (%) 60 | 100 100 100 . 100 92 17 100 . 47 Level 1 19 | . . . . . 7 82 . . 5 Level 2 4 | . . . . . . . . . 11 Level 3 14 | . . . . . . . . . 34 Level 4 . | . . . . . . . . . . Level 5 . | . . . . . . . . . . High Security . | . . . . . . . . . . Max Security . | . . . . . . . . . . Peak Influence 919 | . 150 85 . 50 276 389 155 . 919 Initial 140 | . . 55 . . 3 108 140 . . Average 241 | . 24 13 . 28 96 290 61 . 394 Influence Increases 3600 | . 253 50 . 70 520 1156 69 . 1482 Destroy 0b10 Robot/C 2000 | . 160 40 . 60 300 620 60 . 760 Destroy 0b10 Robot/NC 220 | . 15 . . . 35 70 5 . 95 Destroy Leader 480 | . 34 10 . 10 58 162 . . 206 Allied During Kill 106 | . . . . . . 106 . . . Successful Hack 83 | . 14 . . . . 27 3 . 39 Disable Machine 330 | . . . . . 60 90 . . 180 Destroy Structure 81 | . . . . . 22 6 1 . 52 Partial Spotted 30 | . . . . . . 15 . . 15 Lose Combat Pursuer 270 | . 30 . . . 45 60 . . 135 Influence Decreases 2680 | . 111 192 . 60 273 1053 429 . 562 Entered New Map 463 | . . 87 . . 7 149 220 . . Time Decay 1774 | . 111 95 . 60 263 514 209 . 522 Lost Part 53 | . . 10 . . 3 . . . 40 Lost Ally 240 | . . . . . . 240 . . . Purge Threat 150 | . . . . . . 150 . . . Squads Dispatched 21 | . . . . . 2 4 . . 15 Investigation 3 | . . . . . . 1 . . 2 Extermination 5 | . . . . . . . . . 5 Reinforcement 9 | . . . . . 2 1 . . 6 Assault 4 | . . . . . . 2 . . 2 Garrison . | . . . . . . . . . . Intercept . | . . . . . . . . . . Searches Triggered . | . . . . . . . . . . Construction Impeded 1 | . . . . . . . . . 1 Haulers Reinforced 1 | . . . . . . . . . 1 Active Scanning Responses . | . . . . . . . . . . Cargo Convoy Interrupts 1 | . . . . . . . . . 1 Stealth | -11 -10 -10 -10 -9 -8 -8 -8 -8 -6 --------- Run | Yrd Mat Min Exi Min Mat Sto Rec Scr Fac Distress Signals 11 | . . . . . 2 6 . . 3 Communications Jammed . | . . . . . . . . . . Distress Signals . | . . . . . . . . . . Times Spotted 152 | . 16 2 . 3 33 33 4 . 61 Peak Tracking Total 10 | . 7 2 . 3 10 4 2 . 7 Tactical Retreats 13 | . 1 . . . 2 4 . . 6 Traps | -11 -10 -10 -10 -9 -8 -8 -8 -8 -6 ------- Run | Yrd Mat Min Exi Min Mat Sto Rec Scr Fac Traps Triggered 10 | . 2 . . . 2 4 . . 2 Indirectly . | . . . . . . . . . . Trap Hack Attempts . | . . . . . . . . . . Triggered . | . . . . . . . . . . Disarmed . | . . . . . . . . . . Reprogrammed . | . . . . . . . . . . Reused . | . . . . . . . . . . Traps Extracted . | . . . . . . . . . . Installed . | . . . . . . . . . . Triggered . | . . . . . . . . . . Machines | -11 -10 -10 -10 -9 -8 -8 -8 -8 -6 ---------- Run | Yrd Mat Min Exi Min Mat Sto Rec Scr Fac Machines Disabled 22 | . . . . . 4 6 . . 12 Max in Single Turn 4 | . . . . . 4 1 . . 2 Garrison Access 1 | . . . . . . 1 . . . Machines Repaired . | . . . . . . . . . . Machines Dismantled 2 | . . . . . . 2 . . . Machines Sabotaged . | . . . . . . . . . . Overloaded Fab Kills . | . . . . . . . . . . Hacking | -11 -10 -10 -10 -9 -8 -8 -8 -8 -6 --------- Run | Yrd Mat Min Exi Min Mat Sto Rec Scr Fac Machines Accessed 37 | . 4 1 1 . . 13 8 2 8 Terminals 26 | . 4 . . . . 12 3 . 7 Fabricators . | . . . . . . . . . . Repair Stations . | . . . . . . . . . . Recycling Units 4 | . . . . . . . 3 . 1 Scanalyzers . | . . . . . . . . . . Garrison Access 1 | . . . . . . 1 . . . Total Hacks 149 | . 12 1 1 . . 40 49 19 27 Successful 113 | . 5 1 1 . . 24 46 19 17 Failed 36 | . 7 . . . . 16 3 . 10 Catastrophic 6 | . 3 . . . . . 1 . 2 Database Lockouts . | . . . . . . . . . . Manual 67 | . 12 . 1 . . 27 12 . 15 Terminals 91 | . 12 . . . . 39 16 . 24 Fabricators . | . . . . . . . . . . Repair Stations . | . . . . . . . . . . Recycling Units 12 | . . . . . . . 9 . 3 Scanalyzers . | . . . . . . . . . . Garrison Access 1 | . . . . . . 1 . . . Terminal Hacks 80 | . 1 1 1 . . 15 34 19 9 Record 47 | . . . . . . . 25 19 3 Part Schematic 4 | . . . . . . 1 2 . 1 Robot Analysis 7 | . . . . . . 6 1 . . Prototype ID Bank 1 | . . . . . . . 1 . . Open Door 4 | . . 1 . . . 3 . . . Branch Access Points 3 | . . . . . . 1 1 . 1 Machine Index 2 | . . . . . . 1 1 . . Terminal Index 3 | . 1 . . . . 1 . . 1 Scanalyzer Index 1 | . . . . . . . . . 1 Alert Level 1 | . . . . . . 1 . . . Unreport Threat 1 | . . . . . . 1 . . . Hauler Manifests 2 | . . . . . . . 1 . 1 Registered Components 1 | . . . . . . . 1 . . Registered Prototypes 1 | . . . . . . . . . 1 Zone Layout 1 | . . . . . . . 1 . . Proto ID Catalog 1 | . . . 1 . . . . . . Fabricator Hacks . | . . . . . . . . . . Repair Station Hacks . | . . . . . . . . . . Recycling Unit Hacks 3 | . . . . . . . 2 . 1 Report Inventory 1 | . . . . . . . 1 . . Retrieve Components 2 | . . . . . . . 1 . 1 Scanalyzer . | . . . . . . . . . . Garrison Access Hacks 1 | . . . . . . 1 . . . Seal Access 1 | . . . . . . 1 . . . Unauthorized Hacks 28 | . 4 . . . . 8 9 . 7 Terminals 20 | . 4 . . . . 8 3 . 5 Botnet 20 | . 4 . . . . 8 3 . 5 Fabricators . | . . . . . . . . . . Repair Stations . | . . . . . . . . . . Recycling Units 8 | . . . . . . . 6 . 2 Reject 4 | . . . . . . . 3 . 1 Mask 4 | . . . . . . . 3 . 1 Scanalyzers . | . . . . . . . . . . Garrison Access . | . . . . . . . . . . Data Cores Recovered 1 | . . . . . . . . . 1 Used . | . . . . . . . . . . Hacking Detections 20 | . 4 . . . . 7 2 . 7 Full Trace Events 3 | . . . . . . 1 . . 2 Feedback Events . | . . . . . . . . . . Feedback Blocked . | . . . . . . . . . . Robot Schematics Acquired . | . . . . . . . . . . Robots Built . | . . . . . . . . . . Authchips . | . . . . . . . . . . Time . | . . . . . . . . . . Total Robot Build Rating . | . . . . . . . . . . Part Schematics Acquired 4 | . . . . . . 1 2 . 1 Parts Built . | . . . . . . . . . . Authchips . | . . . . . . . . . . Time . | . . . . . . . . . . Total Part Build Rating . | . . . . . . . . . . Parts Repaired . | . . . . . . . . . . Time . | . . . . . . . . . . Parts Recycled . | . . . . . . . . . . Recycled Matter . | . . . . . . . . . . Retrieved Matter . | . . . . . . . . . . Retrieved Components 10 | . . . . . . . . . 10 Parts Scanalyzed . | . . . . . . . . . . Part Schematics Acquired . | . . . . . . . . . . Parts Damaged . | . . . . . . . . . . Bothacking | -11 -10 -10 -10 -9 -8 -8 -8 -8 -6 ------------ Run | Yrd Mat Min Exi Min Mat Sto Rec Scr Fac Used RIF Installer . | . . . . . . . . . . Robots Hacked . | . . . . . . . . . . Non-combat . | . . . . . . . . . . Combat . | . . . . . . . . . . Robot Hacks Applied . | . . . . . . . . . . Relay Couplers Released . | . . . . . . . . . . Fabnet Peak Effective % . | . . . . . . . . . . Robots Rewired . | . . . . . . . . . . Allies Hacked . | . . . . . . . . . . Hacks Repelled . | . . . . . . . . . . Allies | -11 -10 -10 -10 -9 -8 -8 -8 -8 -6 -------- Run | Yrd Mat Min Exi Min Mat Sto Rec Scr Fac Total Allies 15 | . . . . 3 . 12 . . . Largest Group 10 | . . . . 3 3 10 . . . Highest-Rated Group 173 | . . . . 40 40 173 . . . Highest-Rated Ally 31 | . . . . 16 16 31 . . . Total Orders 2 | . . . . . . 2 . . . ROAM 1 | . . . . . . 1 . . . GUARD 1 | . . . . . . 1 . . . Ally Attacks 131 | . . . . . 16 115 . . . Total Damage 1657 | . . . . . 125 1532 . . . Kills 16 | . . . . . . 16 . . . Allies Corrupted . | . . . . . . . . . . Allies Melted . | . . . . . . . . . . Intel | -11 -10 -10 -10 -9 -8 -8 -8 -8 -6 ------- Run | Yrd Mat Min Exi Min Mat Sto Rec Scr Fac Active Infowar (turns) . | . . . . . . . . . . Robot Analysis Total 6 | . . . . . . 5 1 . . Derelict Logs Recovered 1 | . . 1 . . . . . . . Drone Launches . | . . . . . . . . . . Drone Recoveries . | . . . . . . . . . . Exploration | -11 -10 -10 -10 -9 -8 -8 -8 -8 -6 ------------- Run | Yrd Mat Min Exi Min Mat Sto Rec Scr Fac Turns Passed 9055 | 36 567 710 333 126 682 1400 558 1694 2949 Spaces Moved 6382 | 29 339 512 278 63 325 859 478 1611 1888 Core 9 | 9 . . . . . . . . . Treads . | . . . . . . . . . . Legs 6373 | 20 339 512 278 63 325 859 478 1611 1888 Wheels . | . . . . . . . . . . Hover . | . . . . . . . . . . Flight . | . . . . . . . . . . Fastest Speed 50 | 50 120 120 120 120 105 105 105 105 105 Average Speed 114 | 98 130 120 120 120 124 105 105 105 123 Slowest Speed 260 | 120 190 120 120 120 260 105 105 105 185 Overloaded Moves . | . . . . . . . . . . Propulsion Burnouts . | . . . . . . . . . . Robots Hopped . | . . . . . . . . . . Potential Cave-ins . | . . . . . . . . . . Cave-ins Triggered . | . . . . . . . . . . Exploration Rate (%) 47 | 3 50 74 63 17 33 92 59 59 27 Regions Visited 9 Branch Regions 6 Pre-discovered Areas . | . . . . . . . . . . Known Exits Taken 3 | . . . . . . 1 1 1 . Unknown Exits Taken 6 | 1 1 1 1 1 1 . . . . Scrap Searched 5 | . . 1 . . . . . 4 . Spaces Dug . | . . . . . . . . . . Terrain Destroyed 70 | . . . . . 24 . . . 46 Melee . | . . . . . . . . . . Projectile 42 | . . . . . . . . . 42 AOE 28 | . . . . . 24 . . . 4 Terrain Rammed . | . . . . . . . . . . Walls Destroyed . | . . . . . . . . . . Machines Disabled . | . . . . . . . . . . Actions | -11 -10 -10 -10 -9 -8 -8 -8 -8 -6 --------- Run | Yrd Mat Min Exi Min Mat Sto Rec Scr Fac Total 7514 | 35 402 590 277 88 502 1227 516 1614 2263 Wait 482 | . 4 46 . . 73 209 10 . 140 Move 6373 | 28 338 511 277 62 324 858 477 1610 1888 Hop . | . . . . . . . . . . Pick Up 50 | 2 4 4 . 1 11 12 1 2 13 Fast Attach 35 | 3 2 . . . 4 7 3 . 16 Attach 17 | 2 3 1 . . 5 2 . . 4 Detach . | . . . . . . . . . . Swap 29 | . . . . 2 8 7 3 . 9 Drop 64 | . 2 2 . 1 11 15 3 2 28 Fire 289 | . 39 11 . 16 55 43 7 . 118 Melee . | . . . . . . . . . . Ram . | . . . . . . . . . . Kick 28 | . . 5 . . 4 10 4 . 5 Crush . | . . . . . . . . . . Escape Stasis . | . . . . . . . . . . Rewire 3 | . . . . . . 3 . . . Trap . | . . . . . . . . . . Miscellaneous 144 | . 10 10 . 6 7 61 8 . 42 Route ------- -11/Scrapyard -10/Materials (discovered 3 exits: [*Mat x2] / *Min) -10/Mines -10/Exiles -9/Mines -8/Materials -8/Storage (discovered 2 exits: [*Fac] / *Rec) -8/Recycling (discovered 2 exits: *Fac / *Scr) -8/Scraptown -6/Factory (discovered 3 exits: *Fac / *Low x2) History --------- Turn | Location | Event 1 | -11/Scrapyard | Upgraded with Propulsion slot (x1) 1 | -11/Scrapyard | Upgraded with Utility slot (x2) 1 | -11/Scrapyard | Upgraded with Weapon slot (x1) 8 | -11/Scrapyard | Discovered new exit (range 15) 37 | -11/Scrapyard | Entered Materials 307 | -10/Materials | Build established: Mutant 420 | -10/Materials | Discovered new exit (range 14) 420 | -10/Materials | Discovered new exit (range 12) 497 | -10/Materials | Discovered new exit (range 15) 575 | -10/Materials | Core integrity fell below 50% 604 | -10/Materials | Entered Mines 607 | -10/Mines | Reached level 2 789 | -10/Mines | Assembled infested the area 925 | -10/Mines | Found a hidden stash of uninstalled traps 938 | -10/Mines | Found a damaged Exp. Sensor Array with a note attached 1148 | -10/Mines | Learned Materials stockpile data 1211 | -10/Mines | Met a Derelict who couldn't figure out how to use a Trap Extractor 1305 | -10/Mines | Discovered new exit (range 5) 1314 | -10/Mines | Entered Exiles 1344 | -10/Exiles | Met 8R-AWN 1366 | -10/Exiles | Met EX-HEX 1420 | -10/Exiles | Met EX-BIN 1446 | -10/Exiles | Aligned with FarCom system 1448 | -10/Exiles | Given EX-Vault access code 1484 | -10/Exiles | Opened EX-Vault 1521 | -10/Exiles | Warned to stay clear of 0b10 Research branches 1562 | -10/Exiles | Met EX-DEC 1623 | -10/Exiles | Discovered new exit (range 15) 1647 | -10/Exiles | Entered Mines 1678 | -9/Mines | Met a Derelict bent on vengeance 1747 | -9/Mines | Discovered new exit (range 5) 1763 | -9/Mines | Assisted by bots powering up and referring to "LRC-V3" 1773 | -9/Mines | Entered Materials 1773 | -8/Materials | Accompanied by 3 allies 1775 | -8/Materials | Reached level 3 1775 | -8/Materials | Upgraded with Utility slot (x1) 1871 | -8/Materials | Reached level 4 1886 | -8/Materials | Upgraded with Weapon slot (x1) 1890 | -8/Materials | Lost 3 allies 2058 | -8/Materials | Core integrity fell below 50% 2121 | -8/Materials | Core integrity fell below 20% 2143 | -8/Materials | Destroyed 8 combat bots 2406 | -8/Materials | Reached level 5 2406 | -8/Materials | Discovered new exit (range 12) 2455 | -8/Materials | Entered Storage 2513 | -8/Storage | Reached level 6 2534 | -8/Storage | Upgraded with Utility slot (x1) 2631 | -8/Storage | Build established: Hacker-Gunner 2657 | -8/Storage | Met a pair of Derelict thieves 2766 | -8/Storage | Reached level 7 3027 | -8/Storage | Identified exit to Recycling 3030 | -8/Storage | Assisted by bots powering up and referring to "LRC-V3" 3063 | -8/Storage | Reached level 8 3084 | -8/Storage | Lost 4 allies 3327 | -8/Storage | Lost 3 allies 3353 | -8/Storage | Discovered new exit (range 18) 3374 | -8/Storage | Reached level 9 3855 | -8/Storage | Entered Recycling 3926 | -8/Recycling | Reached level 10 3995 | -8/Recycling | Discovered new exit (range 10) 4058 | -8/Recycling | Identified exit to Factory 4309 | -8/Recycling | Scanned before Scraplab entrance 4326 | -8/Recycling | Entered Scraplab 4337 | -8/Recycling | Discovered new exit (range 4) 4339 | -8/Recycling | Identified exit to Scraptown 4413 | -8/Recycling | Entered Scraptown 4413 | -8/Scraptown | System corruption cleaned by C-Scrubber 4614 | -8/Scraptown | Visited CPS Storage 4634 | -8/Scraptown | Visited TADAMA 5096 | -8/Scraptown | Discovered exit to Factory (range 7) 5214 | -8/Scraptown | Visited Awakened 5254 | -8/Scraptown | Visited Shadow of the Wyrm 5292 | -8/Scraptown | Turned away by UFD registrar 5308 | -8/Scraptown | Visited The Evicted 5474 | -8/Scraptown | Visited SPCMW 5505 | -8/Scraptown | Visited Cyclists 6107 | -8/Scraptown | Entered Factory 6109 | -6/Factory | Reached level 11 6109 | -6/Factory | Upgraded with Propulsion slot (x1) 6545 | -6/Factory | Discovered new exit (range 17) 6562 | -6/Factory | Identified exit to Factory 6637 | -6/Factory | Reached level 12 6750 | -6/Factory | Upgraded with Propulsion slot (x1) 7417 | -6/Factory | Cargo convoy interrupted 7522 | -6/Factory | Reached level 13 7538 | -6/Factory | Upgraded with Utility slot (x1) 7722 | -6/Factory | Reached level 14 7743 | -6/Factory | Core integrity fell below 50% 7756 | -6/Factory | Destroyed 10 combat bots 8078 | -6/Factory | Discovered new exit (range 11) 8135 | -6/Factory | Reached level 15 8179 | -6/Factory | Upgraded with Weapon slot (x1) 8386 | -6/Factory | Identified exit to Lower Caves 8907 | -6/Factory | First assault squad dispatched 9046 | -6/Factory | Core integrity fell below 20% 9056 | -6/Factory | Destroyed by G-67 Veteran with Field Laser Last Messages --------------- 09039_ Slug penetrates Wall. 09039_ Penetrated by Slug. 09040_ H-66 Slayer destroyed. 09040_ K-01 Serf collects debris. 09042_ Penetrated by Slug. 09043_ G-50 Soldier knocked back. 09044_ U-05 Engineer builds a Wall. 09044_ Imp. Propulsion Shielding destroyed. 09045_ K-01 Serf collects debris. 09046_ Penetrated by Slug. 09046_ K-01 Serf destroyed. 09048_ K-01 Serf collects debris. 09049_ Penetrated by Slug. 09049_ K-01 Serf destroyed. 09052_ Penetrated by Slug. 09052_ Slug penetrates Wall. 09053_ Slug penetrates H-66 Slayer. 09055_ Penetrated by Slug. 09056_ Slug penetrates Wall. 09056_ Critical hit (Burn: +37). Map ----- +----------------------------------------------------+ | /* #?# """ + ########???# # # """"" | | ** #?# # # !#???# [ # # """"" | | * ######+### # #???# # + """ | | + + """ #???# # ## | | # ^ # """ #???# [ # ## | | ###+### ^ # """ #???# ! + ## | | ^ #[ #???# # ######## | | ######## ##### ##+###################### #????# | | #??????#+#####+# """ #??????????# #????# | | #??????# # "R" ############ #????# | | #??????# # """ " " + ###### | | ###????# # """ ######### | | ###### # """ #???????# | | # # ######### | | + # """ """ ## ] # ^ | | # # """ """ ## = # | | ### # # """ """ !## + %%" """ | | +##### # #! ## ! # ^ %""^""" | | + # # ## ! # """ """ | | ## # # ## # """ """ | | ## ##+############+############## | | ## l g ^^ | | ## ############ % | | ## #??###?????# ! ! % % | | ## #?########## !!!![ | | ## #?# [ # !*@t | | ####### #?# """![ # = [%;### #######+### | | ### "Y[[[[ ;%%*%%##?# # # | | + """[*= # % #??# + """"""" # | | i# [!= %gh % #??# # """"""" # | | # """"" ;g u #??# # """"""" # | | + """"" # % #??# # """"""" # | | ########### """ # #??# # # | | ??????????# # #??# # / ########## | | ?????????########### #??# # ! #????????? | | ?????????# # #??# ###########????????? | | ########## + ####+############???????? | | + """""" # # #???????? | | ?######### """""" # # #???????? | | #######??# """""" # # #???????? | | #??# """""" # # #???????? | | #??# # # #???????? | | #??# # # * #???????? | | #??########### + #???????? | | #????????????# # #???????? | | #????????????# # #???????? | | ###+###????????????# + #???????? | | # ######????####+#+###################???????? | | # ###### #???????????????????? | | " + """"""""" #???????????????????? | +----------------------------------------------------+ Best States ------------- Heat Dissipation 61 Energy Generation 17 Energy Capacity 300 Matter Stores 300 Matter Capacity 300 Sight Range 18 Robot Scan Range 6 Terrain Scan Density 10 Corruption Containment 8 Armor Coverage 675 Resistance: KI 15 Resistance: TH 15 Resistance: EX 15 Propulsion Shielding 66 Evasion (%) 65 Targeting Accuracy 13 Offensive Hacking 25 Defensive Hacking 20 Authchip Count 3 Item Schematics ----------------- Imp. Light Armor Plating | -8/Storage | Hacked Imp. Weapon Shielding | -8/Recycling | Hacked Adv. ECM Suite | -8/Recycling | Hacked System Guard | -6/Factory | Hacked Robot Schematics ------------------ None Fabricated ------------ Nothing Repaired ---------- Nothing Alien Tech Used ----------------- None Achievements -------------- None Challenges ------------ None RPGLIKE | -11 -10 -10 -10 -9 -8 -8 -8 -8 -6 --------- Run | Yrd Mat Min Exi Min Mat Sto Rec Scr Fac Levels Raised 14 | . . 1 . . 3 4 1 . 5 XP Earned 24789 | 3000 950 750 350 850 3550 5982 1300 500 7557 XP Spent 23555 | 3000 . 1405 . . 4550 6000 1500 . 7100 Upgrades 54 | 7 . 7 . . 19 7 1 . 13 Propulsion Slot 3 | 1 . . . . . . . . 2 Utility Slot 5 | 2 . . . . 1 1 . . 1 Weapon Slot 3 | 1 . . . . 1 . . . 1 Core Integrity 8 | . . 3 . . 5 . . . . Heat Dissipation 6 | 1 . . . . . . . . 5 Inventory Capacity 6 | 1 . 1 . . . 3 1 . . Sight Range 2 | . . 1 . . 1 . . . . Sensor Range 3 | . . . . . 3 . . . . Ranged Accuracy 3 | 1 . 1 . . . 1 . . . Hack Attack % 3 | . . 1 . . . 2 . . . Hack Defense % 2 | . . . . . 1 . . . 1 KI Resistance % 3 | . . . . . 2 . . . 1 TH Resistance % 3 | . . . . . 2 . . . 1 EX Resistance % 3 | . . . . . 2 . . . 1 KI Damage % 1 | . . . . . 1 . . . . Protomatter Created 1209 | . 38 40 . 98 179 292 54 . 508 Integrity Restored 2690 | . 198 198 . 129 165 952 157 . 891 Core 2643 | . 198 198 . 129 165 952 110 . 891 Parts 47 | . . . . . . . 47 . . Protomatter Decayed 603 | . . 38 . . . 353 . . 212 Game ------ Seed TeleporterNullPurifier Manual? 0 Play Time 01:51:28 Cumulative 35.7 hours Start 2025.05.08 @ 22:04:27 End 2025.05.09 @ 00:56:42 Sessions 1 Manual Loads 0 Difficulty Rogue Special Mode Winter2019/RPGLIKE Game No. 59 Rogue 59 Adventurer 0 Explorer 0 Win Type - Total 0 Types 0/0/0/0/0/0/0/0/0/0 Lore% 16 Gallery% 24 Achievement% 24 Wizard Run 0 Options --------- Layout 2 ASCII 0 Keyboard 0 Movement Arrows Keybinds 0 Fullscreen 1 Font 24/Smallcaps Map View 50x44 Zoom Use 0% Tactical HUD 1 Map Filters NONE Filters NONE Steam 1 RUN: 8ac933d2-edc1-472c-aebc-8882d8fcb243